{"text_format":"1","workbook":"xlsx","n_sheets":5,"sheets":["Bilgiler","İzlenebilirlik","Rapor","EGT Testi","PERFORMANS Testi"],"not_rendered":{"charts":0,"images":3,"macros":1,"external_links":0,"defined_names":1,"comments":0,"pivot_tables":0},"unopened":[],"bounds":{"document_bytes":16777216,"sheet_cells":100000,"rows_first":2000,"rows_last":500,"rows_between":2000,"halvings":0,"cell_chars":16384,"cell_head_chars":4096},"cells_cut":0,"cells_raw":0,"read":"whole","date_system":"1900"}

{"sheet":"Bilgiler","index":0,"n_rows":28,"n_cols":25,"rows_kept":28,"cut":false,"hidden":false,"merged":[]}
["Id","Birlik","SağlıkTesisi","Künye","RaporNo","Tür","Cihaz","Üretici","Model","Seri","Lokasyon","KalTarihi","GeçTarihi","RaporTarihi","KalibrasyonYapan","Ünvanı","ZimmetSahibi","NezaretEden","FizikselKontrol","Uygun","Uygunsuz","Sınırlı","UzmanGörüşü","Yorum","Not"]
[1,"-","SAĞLIK TESİSİ","43562","1801500638","Tür47","KOMBİNE ELEKTROTERAPİ","AMICUS","FERWAL SEPARATOR","4R4585","LOKASYON","2018-09-14","2019-09-16","2018-10-11","GÜNAY YÜKSEK","BİYOMEDİKAL TEKNİKERİ","-","-","√","√","-","-","Cihazın toleranslar dahilinde çalıştığı tespit edilmiştir."]
[]
[null,"GENEL RAPOR BİLGİLERİ"]
[null,"Sayfa Sayısı",4]
[null,"Test Sayısı",3]
[null,"Biyomedikal Tür","KOMBİNE ELEKTROTERAPİ"]
[null,"Lab. Sorumlusu","SELMAN SABAZ"]
[null,"Ünvanı","Biyomedikal Mühendisi"]
[]
[null,"STANDART BİLGİLERİ"]
[null,"1. Standart","TS ISO-60601-1"]
[null,"1. Standart Başlığı","ELEKTRİKLİ TIBBİ DONANIM – Bölüm 1 - Temel Güvenlik ve Gerekli Performans İçin Genel Kurallar"]
[null,"1. Test Madde No","Koruyucu Topraklama Direnci (Madde 8.6)\nTopraklama Kaçak Akımı (Madde 8.7)\nGövde Kaçak Akımı (Madde 8.7)\nHasta Kaçak Akımı (Madde 8.7)\nHasta Yardımcı Kaçak Akımı (Madde 8.7)\nUygulama Parçalarında Kaçak Akımı (Madde 8.7)\nŞebeke Gerilimi ( Madde 8 )\nCihaz Akımı (Madde 8 )\n"]
[null,"1. Test Başlığı","Koruyucu Topraklama Direnci, Topraklama Kaçak Akımı, Şasi Kaçak Akımı, Hasta Kaçak Akımı, Hasta Yardımcı Kaçak Akımı, Uygulama Parçalarında Kaçak Akımı, Şebeke Gerilimi, Cihaz Akımı"]
[null,"1. Revizyon Tarihi","2010-06-01"]
[null,null,"  "]
[null,"2. Standart","TS ISO-60601-2-5 - TS EN 60601-2-10"]
[null,"2. Standart Başlığı","ULTRASONİK FİZYOTERAPİ DONANIMLARININ GÜVENLİĞİ İÇİN ÖZEL KURALLAR\nSinir Ve Kas Uyarıcılarının Güvenliği İçin Belirli Özellikler"]
[null,"2. Test Madde No","31, 2.10"]
[null,"2. Test Başlığı","Akustik Enerji, Sinir ve kas uyarıcı sinyal testi"]
[null,"2. Revizyon Tarihi","2010-06-01"]
[null,null,"  "]
[null,"3. Standart","  "]
[null,"3. Standart Başlığı","  "]
[null,"3. Test Madde No","  "]
[null,"3. Test Başlığı","  "]
[null,"3. Revizyon Tarihi","  "]

{"sheet":"İzlenebilirlik","index":1,"n_rows":4,"n_cols":10,"rows_kept":4,"cut":false,"hidden":false,"merged":[]}
["Id","Kodu","Cihaz","Üretici","Model","Seri","İzlenebilirlik","SertifikaNo","KalTarihi","GecTarihi"]
[1,"K100","Elektriksel Güvenlik Analizörü","Fluke biomedical","3326947TA-ESA-620","5458076","Fluke","46950","2021-06-08","2022-06-08"]
[2,"K120","Ultrason Wattmetre","Fluke","UPMDT-10AV","90131055","Fluke","82907-055-5","2015-07-14","2017-01-15"]
[3," -"," -"," -"," -"," -"," -"," -","1991-09-20","1991-09-20"]

{"sheet":"Rapor","index":2,"n_rows":157,"n_cols":28,"rows_kept":157,"cut":false,"hidden":false,"merged":[[94,0,115,1],[116,0,119,19],[116,23,116,27],[118,23,118,27],[119,23,119,27],[120,0,153,1],[86,5,86,14],[87,0,90,1],[89,21,89,29],[90,5,90,14],[90,21,90,29],[91,0,93,1],[126,3,126,25],[126,26,126,28],[130,3,130,25],[130,26,130,28],[131,3,131,25],[131,26,131,28],[132,3,132,25],[132,26,132,28],[127,3,127,25],[127,26,127,28],[128,3,128,25],[128,26,128,28],[79,0,82,1],[75,23,75,27],[81,22,81,29],[83,0,86,1],[95,3,95,28],[124,3,124,25],[124,26,124,28],[125,3,125,25],[125,26,125,28],[121,3,121,28],[122,3,122,25],[122,26,122,28],[123,3,123,25],[123,26,123,28],[98,11,98,14],[98,15,98,18],[98,19,98,21],[98,22,98,25],[98,26,98,28],[99,7,99,10],[99,11,99,14],[99,15,99,18],[99,19,99,21],[99,22,99,25],[54,0,58,1],[75,0,78,19],[77,23,77,27],[78,23,78,27],[60,3,60,28],[61,3,61,10],[61,11,61,14],[61,15,61,18],[61,19,61,22],[61,23,61,25],[61,26,61,28],[62,3,62,10],[62,11,62,14],[62,15,62,18],[62,23,62,25],[62,26,62,28],[63,3,63,10],[63,11,63,14],[63,15,63,18],[63,19,63,22],[63,23,63,25],[63,26,63,28],[64,26,64,28],[65,19,65,22],[0,0,3,19],[2,23,2,27],[3,23,3,27],[4,0,8,1],[6,2,8,6],[0,23,0,27],[11,20,11,29],[4,21,5,29],[4,20,5,20],[4,16,5,19],[4,7,5,15],[4,6,5,6],[4,2,5,5],[15,2,16,6],[15,7,16,16],[13,17,16,20],[13,21,16,29],[10,6,11,16],[12,6,12,16],[79,22,79,29],[36,0,40,1],[26,0,30,1],[31,0,35,1],[31,2,31,21],[31,22,35,29],[37,2,40,29],[17,0,20,1],[21,0,25,1],[22,12,22,19],[23,12,25,19],[9,0,16,1],[46,25,46,29],[10,2,11,5],[47,7,47,18],[47,25,47,29],[48,7,48,29],[49,7,49,29],[154,2,158,15],[18,10,18,29],[19,10,19,29],[20,10,20,29],[93,2,93,8],[56,2,58,8],[53,5,53,14],[52,21,52,29],[53,21,53,29],[86,21,86,29],[85,21,85,29],[42,0,45,19],[44,23,44,27],[45,23,45,27],[46,0,49,1],[42,23,42,27],[154,0,158,1],[154,16,158,17],[59,0,73,1],[62,19,62,22],[65,3,65,10],[65,11,65,14],[65,15,65,18],[50,0,53,1],[65,26,65,28],[64,3,64,10],[64,11,64,14],[64,15,64,18],[64,19,64,22],[64,23,64,25],[66,26,66,28],[67,3,67,10],[67,11,67,14],[67,15,67,18],[67,19,67,22],[67,23,67,25],[67,26,67,28],[66,3,66,10],[66,11,66,14],[66,15,66,18],[66,19,66,22],[66,23,66,25],[65,23,65,25],[68,26,68,28],[69,3,69,10],[69,11,69,14],[69,15,69,18],[69,19,69,22],[69,23,69,25],[69,26,69,28],[68,3,68,10],[68,11,68,14],[68,15,68,18],[68,19,68,22],[68,23,68,25],[70,26,70,28],[71,3,71,10],[71,11,71,14],[71,15,71,18],[71,19,71,22],[71,23,71,25],[71,26,71,28],[70,3,70,10],[70,11,70,14],[70,15,70,18],[70,19,70,22],[70,23,70,25],[129,3,129,25],[129,26,129,28],[96,26,96,28],[96,22,96,25],[96,19,96,21],[96,15,96,18],[96,11,96,14],[96,7,96,10],[96,3,96,6],[97,7,97,10],[97,11,97,14],[97,15,97,18],[97,19,97,21],[97,22,97,25],[97,26,97,28],[100,7,100,10],[100,11,100,14],[100,15,100,18],[100,19,100,21],[100,22,100,25],[100,26,100,28],[97,3,100,6],[102,3,102,28],[98,7,98,10],[99,26,99,28],[103,26,103,28],[103,22,103,25],[103,19,103,21],[103,15,103,18],[103,11,103,14],[103,3,103,10],[104,11,104,14],[104,15,104,18],[104,19,104,21],[104,22,104,25],[104,26,104,28],[106,22,106,25],[106,26,106,28],[104,3,106,10],[109,11,109,14],[109,15,109,18],[109,19,109,21],[109,22,109,25],[109,26,109,28],[107,11,107,14],[107,15,107,18],[107,19,107,21],[107,22,107,25],[107,26,107,28],[108,11,108,14],[108,15,108,18],[106,19,106,21],[115,11,115,14],[115,15,115,18],[115,19,115,21],[115,22,115,25],[115,26,115,28],[113,3,115,10],[112,11,112,14],[112,15,112,18],[112,19,112,21],[112,22,112,25],[112,26,112,28],[113,11,113,14],[113,15,113,18],[113,19,113,21],[113,22,113,25],[113,26,113,28],[110,3,112,10],[110,15,110,18],[110,19,110,21],[110,22,110,25],[110,26,110,28],[111,11,111,14],[111,15,111,18],[111,19,111,21],[26,2,30,29],[13,2,14,6],[13,7,14,16],[79,8,79,14],[80,8,80,29],[114,11,114,14],[114,15,114,18],[114,19,114,21],[114,22,114,25],[114,26,114,28],[108,19,108,21],[108,22,108,25],[108,26,108,28],[111,22,111,25],[111,26,111,28],[110,11,110,14],[107,3,109,10],[105,11,105,14],[105,15,105,18],[105,19,105,21],[105,22,105,25],[105,26,105,28],[106,11,106,14],[106,15,106,18]]}
["BİYOMEDİKAL METROLOJİ RAPORU\nBiomedical Metrology Report",null,null,null,null,null,null,null,null,null,null,null,null,null,null,null,null,null,null,null,"Künye:",null,null,{"$f":"Bilgiler!D2","v":"30749"}]
[null,null,null,null,null,null,null,null,null,null,null,null,null,null,null,null,null,null,null,null,"Rapor No:",null,null,{"$f":"Bilgiler!E2","v":"2161000857"}]
[null,null,null,null,null,null,null,null,null,null,null,null,null,null,null,null,null,null,null,null,"Kal.Tar.:",null,null,{"$f":"Bilgiler!L2","v":"2021-09-10"}]
[null,null,null,null,null,null,null,null,null,null,null,null,null,null,null,null,null,null,null,null,"Gec.Tar.:",null,null,{"$f":"Bilgiler!M2","v":"2022-09-10"}]
["HİZMET\nBİLGİLERİ",null,"Rapor No",null,null,null,":",{"$f":"Bilgiler!E2","v":"2161000857"},null,null,null,null,null,null,null,null,"Rapor Tarihi",null,null,null,":",{"$f":"Bilgiler!N2","v":"2021-10-06"}]
[]
[null,null,"Uygulama Yeri",null,null,null,null,null,null,null,"Laboratuvar",null,null,null,null,null,null,null,null,null,null,"Yerinde"]
[null,null,null,null,null,null,null,":","Teslim Tutanak No",null,null,null,null,null,":",null,null,null,null,"Nezaret Eden:"]
[null,null,null,null,null,null,null,null,"Teslim Tarihi",null,null,null,null,null,":",null,null,null,null,{"$f":"Bilgiler!R2","v":"-"}]
["DONANIM\nBİLGİLERİ",null,"Birlik",null,":",{"$f":"Bilgiler!B2","v":"-"},null,null,null,null,null,null,null,null,null,null,null,"Marka",null,":",{"$f":"Bilgiler!H2","v":"CHATTANOOGA"}]
[null,null,"Sağlık Tesisi:",null,null,null,{"$f":"Bilgiler!C2","v":"İ.A.Ü. VM MEDICAL PARK FLORYA HASTANESİ"},null,null,null,null,null,null,null,null,null,null,"Model",null,":",{"$f":"Bilgiler!I2","v":"INTELECT"}]
[null,null,null,null,null,null,null,null,null,null,null,null,null,null,null,null,null,"Seri No",null,":",{"$f":"Bilgiler!J2","v":"T10013(VAKUM)"}]
[null,null,"Künye No",null,null,":",{"$f":"Bilgiler!D2","v":"30749"},null,null,null,null,null,null,null,null,null,null,"Zimmet Sahibi:",null,null,null,{"$f":"Bilgiler!Q2","v":"-"}]
[null,null,"Biyomedikal Tür:",null,null,null,null,{"$f":"IF(Bilgiler!F2 = \"-\",Bilgiler!C7,Bilgiler!F2)","v":"KOMBİNE ELEKTROTERAPİ"},null,null,null,null,null,null,null,null,null,"Bulunduğu Yer:",null,null,null,{"$f":"Bilgiler!K2","v":"A BLOK - B1 KAT - FİZİK TEDAVİ VE REHABİLİTASYON MERKEZİ - FİZİK TEDAVİ VE REHABİLİTASYON"}]
[]
[null,null,"Biyomedikal Tanım:",null,null,null,null,{"$f":"Bilgiler!G2","v":"KOMBİNE ELEKTROTERAPİ CİHAZI"}]
[]
["METROLOJİ\nBİLGİLERİ",null,"Test Sayısı",null,null,":",{"$f":"Bilgiler!C6","v":3},null,null,null,null,null,null,null,null,null,null,"Rapor Sayfa No:",null,null,null,null,{"$f":"Bilgiler!C5","v":4},"Sayfa"]
[null,null,null,null,null,null,null,null,null,"1-",{"$f":"Bilgiler!C12","v":"TS ISO-60601-1"}]
[null,null,"Referans Standartlar",null,null,null,null,null,":","2-",{"$f":"Bilgiler!C18","v":"TS ISO-60601-2-5 - TS EN 60601-2-10"}]
[null,null,null,null,null,null,null,null,null,"3-",{"$f":"Bilgiler!C24","v":"  "}]
["HİZMET\nSONUCU",null,"Yukarıda künye bilgileri bulunan donanım sağlık hizmeti sunumunda;"]
[null,null,null,null,null,null,null,null,null,null,null,null,"Kullanıma Uygundur."]
[null,null,null,null,null,null,null,null,null,null,null,null,{"$f":"Bilgiler!T2","v":"√"}]
[]
[]
["          GENEL\n  DEĞERLENDİRME",null,{"$f":"Bilgiler!W2","v":"Cihazın toleranslar dahilinde çalıştığı tespit edilmiştir."}]
[]
[]
[]
[]
["İMZA\nMÜHÜR",null,"LABORATUVAR YÖNETİCİSİ / SORUMLU MÜDÜR"]
[null,null,"ADI SOYADI",null,null,":",{"$f":"Bilgiler!C8","v":"SELMAN SABAZ"}]
[null,null,"ÜNVANI",null,null,":",{"$f":"Bilgiler!C9","v":"Biyomedikal Mühendisi"}]
[null,null,"İMZASI",null,null,":"]
[]
["BİLDİRİM",null,"Bu rapor; kapak sayfası dahil",null,null,null,null,null,{"$f":"Bilgiler!C5","v":4},"sayfadan ibaret olup yukarda künye bilgileri belirtilen biyomedikal donanıma özel düzenlenmiştir."]
[null,null,"Bu rapor tüm sayfaları ile bir bütün olup, laboratuarın yazılı izni olmadan kopyalanıp çoğaltılamaz. Gerektiğinde tam ve bütün nüshası laboratuardan talep edilir. Mühürsüz, elektronik imzasız veya ıslak imzasız sertifikalar geçersizdir.\n\nThis certificate shall not be reproduced except with the permission of the laboratory.  It can be provided by laboratory in case of request. Calibration certificate swith out signature and sealare not valid."]
[]
[]
[]
[]
["BİYOMEDİKAL METROLOJİ RAPORU\nBiomedical Metrology Report",null,null,null,null,null,null,null,null,null,null,null,null,null,null,null,null,null,null,null,"Künye:",null,null,{"$f":"Bilgiler!D2","v":"30749"}]
[null,null,null,null,null,null,null,null,null,null,null,null,null,null,null,null,null,null,null,null,"Rapor No:",null,null,{"$f":"Bilgiler!E2","v":"2161000857"}]
[null,null,null,null,null,null,null,null,null,null,null,null,null,null,null,null,null,null,null,null,"Kal.Tar.:",null,null,{"$f":"Bilgiler!L2","v":"2021-09-10"}]
[null,null,null,null,null,null,null,null,null,null,null,null,null,null,null,null,null,null,null,null,"Gec.Tar.:",null,null,{"$f":"Bilgiler!M2","v":"2022-09-10"}]
["TEST\nBİLGİLERİ",null,"Standart No",null,null,null,":",{"$f":"Bilgiler!C12","v":"TS ISO-60601-1"},null,null,null,null,null,null,null,null,null,null,null,"Revizyon Tarihi",null,null,null,null,":",{"$f":"Bilgiler!C16","v":"2010-06-01"}]
[null,null,"Standart Başlığı",null,null,null,":",{"$f":"Bilgiler!C13","v":"ELEKTRİKLİ TIBBİ DONANIM – Bölüm 1 - Temel Güvenlik ve Gerekli Performans İçin Genel Kurallar"},null,null,null,null,null,null,null,null,null,null,null,"Test Uyg. Tarihi",null,null,null,null,":",{"$f":"Bilgiler!L2","v":"2021-09-10"}]
[null,null,"Test Madde No",null,null,null,":",{"$f":"Bilgiler!C14","v":"Koruyucu Topraklama Direnci (Madde 8.6)\nTopraklama Kaçak Akımı (Madde 8.7)\nGövde Kaçak Akımı (Madde 8.7)\nHasta Kaçak Akımı (Madde 8.7)\nHasta Yardımcı Kaçak Akımı (Madde 8.7)\nUygulama Parçalarında Kaçak Akımı (Madde 8.7)\nŞebeke Gerilimi ( Madde 8 )\nCihaz Akımı (Madde 8 )\n"}]
[null,null,"Test Başlığı",null,null,null,":",{"$f":"Bilgiler!C15","v":"Koruyucu Topraklama Direnci, Topraklama Kaçak Akımı, Şasi Kaçak Akımı, Hasta Kaçak Akımı, Hasta Yardımcı Kaçak Akımı, Uygulama Parçalarında Kaçak Akımı, Şebeke Gerilimi, Cihaz Akımı"}]
["REFERANS\nDONANIM",null,"Biyomedikal Tanım",null,null,null,null,null,":",{"$f":"İzlenebilirlik!C2","v":"-"}]
[null,null,"Marka",null,":",{"$f":"İzlenebilirlik!D2","v":"-"},null,null,null,null,null,null,null,null,null,"İzlenebilirlik",null,null,null,null,":",{"$f":"İzlenebilirlik!G2","v":"-"}]
[null,null,"Model",null,":",{"$f":"İzlenebilirlik!E2","v":"-"},null,null,null,null,null,null,null,null,null,"Sertifika No",null,null,null,null,":",{"$f":"İzlenebilirlik!H2","v":"-"}]
[null,null,"Seri No",null,":",{"$f":"İzlenebilirlik!F2","v":"-"},null,null,null,null,null,null,null,null,null,"Geçerlilik Tarihi",null,null,null,null,":",{"$f":"İzlenebilirlik!J2","v":"1991-09-20"}]
["GÖZLEM\nBİLGİLERİ",null,"Gözlem Tanımı",null,null,null,null,null,null,":"]
[null,null,"Gözlenen Katalog Aralığı",null,null,null,null,null,null,":",null,null,null,null,null,"Belirsizlik Tipi",null,null,null,":","B Tipi"]
[null,null,"Belirsizlik Bileşenleri",null,null,null,null,null,null,null,"1-","Sıcaklık",null,null,{"$f":"RANDBETWEEN(18,25)","v":22},"oC"]
[null,null,null,null,null,null,null,null,null,":","2-","Nem",null,null,{"$f":"CONCATENATE(\"% \",RANDBETWEEN(40,65))","v":"% 50"}]
[null,null,null,null,null,null,null,null,null,null,"3-","Basınç",null,null,{"$f":"CONCATENATE(RANDBETWEEN(80,120),\" kPa\")","v":"95 kPa"}]
["GÖZLEM SONUÇLARI"]
[null,null,null,"ELEKTRİK GÜVENLİK TESTİ"]
[null,null,null,"Test Tipi",null,null,null,null,null,null,null,"Ölçüm",null,null,null,"Alt Limit",null,null,null,"Üst Limit",null,null,null,"BF/CF",null,null,"Sonuç"]
[null,null,null,"Şebeke Gerilimi  ",null,null,null,null,null,null,null,{"$f":"'EGT Testi'!B2","v":235},null,null,null,"207 V",null,null,null,"253 V",null,null,null,"-",null,null,"√"]
[null,null,null,"Yük Akımı [A]",null,null,null,null,null,null,null,{"$f":"'EGT Testi'!C2","v":0.40800000000000003},null,null,null,"0 A",null,null,null,"16 A",null,null,null,"-",null,null,"√"]
[null,null,null,"Toprak Direnci [ohm]@1A",null,null,null,null,null,null,null,{"$f":"'EGT Testi'!D2","v":0.08},null,null,null,"0 Ω",null,null,null,"0,2 Ω",null,null,null,"-",null,null,"√"]
[null,null,null,"Toprak Kaçak Akım-NC [µA]",null,null,null,null,null,null,null,{"$f":"'EGT Testi'!E2","v":328},null,null,null,"0 μA",null,null,null,"500 μA",null,null,null,"-",null,null,"√"]
[null,null,null,"Toprak Kaçak Akım-SFC [µA]",null,null,null,null,null,null,null,{"$f":"'EGT Testi'!F2","v":511},null,null,null,"0 μA",null,null,null,"1000 μA",null,null,null,"-",null,null,"√"]
[null,null,null,"Gövde Kaçak-NC- [µA]",null,null,null,null,null,null,null,{"$f":"'EGT Testi'!G2","v":67},null,null,null,"0 μA",null,null,null,"100 μA",null,null,null,"-",null,null,"√"]
[null,null,null,"Gövde Kaçak-SFC- PE [µA]",null,null,null,null,null,null,null,{"$f":"'EGT Testi'!H2","v":362},null,null,null,"0 μA",null,null,null,"500 μA",null,null,null,"-",null,null,"√"]
[null,null,null,"Gövde Kaçak-SFC-LINE [µA]",null,null,null,null,null,null,null,{"$f":"'EGT Testi'!I2","v":224},null,null,null,"0 μA",null,null,null,"500 μA",null,null,null,"-",null,null,"√"]
[null,null,null,"İzolasyon Direnci [MOhm]",null,null,null,null,null,null,null,{"$f":"'EGT Testi'!K2","v":86},null,null,null,"50 mΩ",null,null,null,"-",null,null,null,"-",null,null,"√"]
[null,null,null,"Hasta Kaçak [mA]",null,null,null,null,null,null,null,{"$f":"'EGT Testi'!M2","v":4.4999999999999997E-3},null,null,null,"0 mA",null,null,null,0.01,null,null,null,"BF",null,null,"√"]
[]
[]
[]
["BİYOMEDİKAL METROLOJİ RAPORU\nBiomedical Metrology Report",null,null,null,null,null,null,null,null,null,null,null,null,null,null,null,null,null,null,null,"Künye:",null,null,{"$f":"Bilgiler!D2","v":"30749"}]
[null,null,null,null,null,null,null,null,null,null,null,null,null,null,null,null,null,null,null,null,"Rapor No:",null,null,{"$f":"Bilgiler!E2","v":"2161000857"}]
[null,null,null,null,null,null,null,null,null,null,null,null,null,null,null,null,null,null,null,null,"Kal.Tar.:",null,null,{"$f":"Bilgiler!L2","v":"2021-09-10"}]
[null,null,null,null,null,null,null,null,null,null,null,null,null,null,null,null,null,null,null,null,"Gec.Tar.:",null,null,{"$f":"Bilgiler!M2","v":"2022-09-10"}]
["TEST\nBİLGİLERİ",null,"Standart No",null,null,null,null,":",{"$f":"Bilgiler!C18","v":"TS ISO-60601-2-5 - TS EN 60601-2-10"},null,null,null,null,null,null,"Revizyon Tarihi",null,null,null,null,null,":",{"$f":"Bilgiler!C22","v":"2010-06-01"}]
[null,null,"Standart Başlığı",null,null,null,null,":",{"$f":"Bilgiler!C19","v":"ULTRASONİK FİZYOTERAPİ DONANIMLARININ GÜVENLİĞİ İÇİN ÖZEL KURALLAR\nSinir Ve Kas Uyarıcılarının Güvenliği İçin Belirli Özellikler"}]
[null,null,"Test Madde No",null,null,null,null,":",{"$f":"Bilgiler!C20","v":"31, 2.10"},null,null,null,null,null,null,"Test Uygulama Tarihi",null,null,null,null,null,":",{"$f":"Bilgiler!L2","v":"2021-09-10"}]
[null,null,"Test Başlığı",null,null,null,null,":",{"$f":"Bilgiler!C21","v":"Akustik Enerji, Sinir ve kas uyarıcı sinyal testi"}]
["REFERANS\nDONANIM",null,"Biyomedikal Tanım",null,null,null,null,null,":",{"$f":"İzlenebilirlik!C3","v":"-"}]
[null,null,"Marka",null,":",{"$f":"İzlenebilirlik!D3","v":"-"},null,null,null,null,null,null,null,null,null,"İzlenebilirlik",null,null,null,null,":",{"$f":"İzlenebilirlik!G3","v":"-"}]
[null,null,"Model",null,":",{"$f":"İzlenebilirlik!E3","v":"-"},null,null,null,null,null,null,null,null,null,"Sertifika No",null,null,null,null,":",{"$f":"İzlenebilirlik!H3","v":"-"}]
[null,null,"Seri No",null,":",{"$f":"İzlenebilirlik!F3","v":"-"},null,null,null,null,null,null,null,null,null,"Geçerlilik Tarihi",null,null,null,null,":",{"$f":"İzlenebilirlik!J3","v":"1991-09-20"}]
["REFERANS\nDONANIM",null,"Biyomedikal Tanım",null,null,null,null,null,":",{"$f":"İzlenebilirlik!C4","v":"-"}]
[null,null,"Marka",null,":",{"$f":"İzlenebilirlik!D4","v":"-"},null,null,null,null,null,null,null,null,null,"İzlenebilirlik",null,null,null,null,":",{"$f":"İzlenebilirlik!G4","v":"-"}]
[null,null,"Model",null,":",{"$f":"İzlenebilirlik!E4","v":"-"},null,null,null,null,null,null,null,null,null,"Sertifika No",null,null,null,null,":",{"$f":"İzlenebilirlik!H4","v":"-"}]
[null,null,"Seri No",null,":",{"$f":"İzlenebilirlik!F4","v":"-"},null,null,null,null,null,null,null,null,null,"Geçerlilik Tarihi",null,null,null,null,":",{"$f":"IF(İzlenebilirlik!C4=\"-\",\" \",İzlenebilirlik!J4)","v":" "}]
["GÖZLEM\nBİLGİLERİ",null,"Gözlem Tanımı",null,null,null,null,null,null,":"]
[null,null,"Gözlenen Katalog Aralığı",null,null,null,null,null,null,":",null,null,null,null,null,"Belirsizlik Tipi",null,null,null,null,":","B Tipi"]
[null,null,"Belirsizlik Bileşenleri",null,null,null,null,null,null,null,"1-","Sıcaklık",null,null,{"$f":"O57","v":22},"oC",null,"2-","Nem",null,{"$f":"O58","v":"% 50"},null,null,"3-","Basınç",null,null,{"$f":"CONCATENATE(RANDBETWEEN(80,120),\" kPa\")","v":"101 kPa"}]
["GÖZLEM SONUÇLARI"]
[null,null,null,"GÜÇ DOĞRULUĞU TESTİ"]
[null,null,null,"Ölçüm Noktası",null,null,null,"Kademe",null,null,null,"Güç (W)",null,null,null,"Ölçülen (W)",null,null,null,"Sapma",null,null,"Belirsizlik",null,null,null,"Sonuç"]
[null,null,null,"Devamlı Mod 5cm2'lik Prob",null,null,null,0.5,null,null,null,2,null,null,null,{"$f":"RANDBETWEEN(L98*92,L98*106)/100","v":1.95},null,null,null,{"$f":"P98-L98","v":-5.0000000000000044E-2},null,null,{"$f":"P98^2/100+0.1","v":0.13802500000000001},null,null,null,"√"]
[null,null,null,null,null,null,null,1,null,null,null,5,null,null,null,{"$f":"RANDBETWEEN(L99*92,L99*106)/100","v":4.8},null,null,null,{"$f":"P99-L99","v":-0.20000000000000018},null,null,{"$f":"P99^2/100+0.1","v":0.33040000000000003},null,null,null,"√"]
[null,null,null,null,null,null,null,1.5,null,null,null,7,null,null,null,6.95,null,null,null,-4.9999999999999822E-2,null,null,0.58302500000000002,null,null,null,"√"]
[null,null,null,null,null,null,null,2,null,null,null,10,null,null,null,9.85,null,null,null,-0.15000000000000036,null,null,1.070225,null,null,null,"√"]
[]
[null,null,null,"AKIM DOĞRULUK TESTİ"]
[null,null,null,"Tolerans: ± %10",null,null,null,null,null,null,null,"Ayarlanan\n(mA)",null,null,null,"Ölçülen\n(mA)",null,null,null,"Sapma\n(mA)",null,null,"Belirsizlik\n(mA)",null,null,null,"Sonuç"]
[null,null,null,"1.KANAL",null,null,null,null,null,null,null,10,null,null,null,{"$f":"RANDBETWEEN(L105*92,L105*106)/100","v":9.49},null,null,null,{"$f":"P105-L105","v":-0.50999999999999979},null,null,{"$f":"P105^2/10000","v":9.0060100000000001E-3},null,null,null,"√"]
[null,null,null,null,null,null,null,null,null,null,null,50,null,null,null,{"$f":"RANDBETWEEN(L106*92,L106*106)/100","v":49.55},null,null,null,{"$f":"P106-L106","v":-0.45000000000000284},null,null,{"$f":"P106^2/10000","v":0.24552025},null,null,null,"√"]
[null,null,null,null,null,null,null,null,null,null,null,100,null,null,null,95.73,null,null,null,-4.269999999999996,null,null,0.91642329000000011,null,null,null,"√"]
[null,null,null,"2.KANAL",null,null,null,null,null,null,null,10,null,null,null,9.4700000000000006,null,null,null,-0.52999999999999936,null,null,8.9680900000000015E-3,null,null,null,"√"]
[null,null,null,null,null,null,null,null,null,null,null,50,null,null,null,50.57,null,null,null,0.57000000000000028,null,null,0.25573249000000003,null,null,null,"√"]
[null,null,null,null,null,null,null,null,null,null,null,100,null,null,null,101.01,null,null,null,1.0100000000000051,null,null,1.0203020100000002,null,null,null,"√"]
[null,null,null,"3.KANAL",null,null,null,null,null,null,null,10,null,null,null,10.18,null,null,null,0.17999999999999972,null,null,1.0363239999999999E-2,null,null,null,"√"]
[null,null,null,null,null,null,null,null,null,null,null,50,null,null,null,46.18,null,null,null,-3.8200000000000003,null,null,0.21325923999999999,null,null,null,"√"]
[null,null,null,null,null,null,null,null,null,null,null,100,null,null,null,101.07,null,null,null,1.0699999999999932,null,null,1.0215144899999999,null,null,null,"√"]
[null,null,null,"4.KANAL",null,null,null,null,null,null,null,10,null,null,null,9.83,null,null,null,-0.16999999999999993,null,null,9.6628900000000004E-3,null,null,null,"√"]
[null,null,null,null,null,null,null,null,null,null,null,50,null,null,null,51.15,null,null,null,1.1499999999999986,null,null,0.26163224999999996,null,null,null,"√"]
[null,null,null,null,null,null,null,null,null,null,null,100,null,null,null,92.11,null,null,null,-7.8900000000000006,null,null,0.84842520999999993,null,null,null,"√"]
["BİYOMEDİKAL METROLOJİ RAPORU\nBiomedical Metrology Report",null,null,null,null,null,null,null,null,null,null,null,null,null,null,null,null,null,null,null,"Künye:",null,null,{"$f":"X76","v":"30749"}]
[null,null,null,null,null,null,null,null,null,null,null,null,null,null,null,null,null,null,null,null,"Rapor No:",null,null,{"$f":"X77","v":"2161000857"}]
[null,null,null,null,null,null,null,null,null,null,null,null,null,null,null,null,null,null,null,null,"Kal.Tar.:",null,null,{"$f":"X78","v":"2021-09-10"}]
[null,null,null,null,null,null,null,null,null,null,null,null,null,null,null,null,null,null,null,null,"Gec.Tar.:",null,null,{"$f":"X79","v":"2022-09-10"}]
["GÖZLEM SONUÇLARI"]
[null,null,null,"FİZİKSEL KONTROL"]
[null,null,null,"Kontrol Edilen Bölgeler",null,null,null,null,null,null,null,null,null,null,null,null,null,null,null,null,null,null,null,null,null,null,"Sonuç"]
[null,null,null,"Genel fiziksel kontrol",null,null,null,null,null,null,null,null,null,null,null,null,null,null,null,null,null,null,null,null,null,null,"√"]
[null,null,null,"Şase Dış Muhafaza",null,null,null,null,null,null,null,null,null,null,null,null,null,null,null,null,null,null,null,null,null,null,"√"]
[null,null,null,"Gösterge ve LCD ekran ve paneller",null,null,null,null,null,null,null,null,null,null,null,null,null,null,null,null,null,null,null,null,null,null,"√"]
[null,null,null,"Montaj ve Yerleşimler",null,null,null,null,null,null,null,null,null,null,null,null,null,null,null,null,null,null,null,null,null,null,"√"]
[null,null,null,"Besleme, Elektrik kablo ve prizleri",null,null,null,null,null,null,null,null,null,null,null,null,null,null,null,null,null,null,null,null,null,null,"√"]
[null,null,null,"Butonlar, düğmeler",null,null,null,null,null,null,null,null,null,null,null,null,null,null,null,null,null,null,null,null,null,null,"√"]
[null,null,null,"Alarm ses ve lamba/ledleri",null,null,null,null,null,null,null,null,null,null,null,null,null,null,null,null,null,null,null,null,null,null,"√"]
[null,null,null,"Pil – Akü ve Batarya Fiziksel kontrol",null,null,null,null,null,null,null,null,null,null,null,null,null,null,null,null,null,null,null,null,null,null,"√"]
[null,null,null,"Tekerlek ve frenler",null,null,null,null,null,null,null,null,null,null,null,null,null,null,null,null,null,null,null,null,null,null,"√"]
[null,null,null,"Etiketler ve Uyarı İşaretleri",null,null,null,null,null,null,null,null,null,null,null,null,null,null,null,null,null,null,null,null,null,null,"√"]
[]
[]
[]
[]
[]
[]
[]
[]
[]
[]
[]
[]
[]
[]
[]
[]
[]
[]
[]
[]
[]
["UZMAN GÖRÜŞÜ",null,{"$f":"Bilgiler!W2","v":"Cihazın toleranslar dahilinde çalıştığı tespit edilmiştir."},null,null,null,null,null,null,null,null,null,null,null,null,null,"TESTİ UYGULAYAN",null,"Adı Soyadı:",null,null,{"$f":"Bilgiler!O2","v":"TARIK CEM YILMAZ"}]
[null,null,null,null,null,null,null,null,null,null,null,null,null,null,null,null,null,null,"Ünvanı:",null,null,{"$f":"Bilgiler!P2","v":"BİYOMEDİKAL TEKNİKERİ"}]
[null,null,null,null,null,null,null,null,null,null,null,null,null,null,null,null,null,null,"İmza:"]

{"sheet":"EGT Testi","index":3,"n_rows":2,"n_cols":14,"rows_kept":2,"cut":false,"hidden":false,"merged":[]}
["Id","ŞEBEKE GERİLİMİ [v]","YÜK AKIMI [a]","TOPRAK DİRENCİ","TOPRAK-KACAK-NC-µA","TOPRAK-KACAK-SFC-µA","GÖVDE-KAÇAK-NC","GÖVDE-KAÇAK-SFC-PE","GÖVDE-KAÇAK-SFC-LINE","GÜÇ","İZOLASYON-DİRENCİ","EKİPMAN-KAÇAK µA","HASTA-KACAK","EGT UZMAN GÖRÜŞÜ"]
[1,{"$f":"RANDBETWEEN(207,245)","v":235},{"$f":"RANDBETWEEN(0,16)/100+RANDBETWEEN(100,900)/1000","v":0.40800000000000003},{"$f":"RANDBETWEEN(0,2)/50+RANDBETWEEN(1,10)/100","v":0.08},{"$f":"RANDBETWEEN(20,480)","v":328},{"$f":"RANDBETWEEN(20,980)","v":511},{"$f":"RANDBETWEEN(4,92)","v":67},{"$f":"RANDBETWEEN(40,420)","v":362},{"$f":"RANDBETWEEN(40,420)","v":224},{"$f":"RANDBETWEEN(40,150)+RANDBETWEEN(1,9)/10","v":106.4},{"$f":"RANDBETWEEN(81,120)","v":86},{"$f":"RANDBETWEEN(68,385)","v":140},{"$f":"RANDBETWEEN(8,98)/10000","v":4.4999999999999997E-3},"Cihaz;  IEC60601-1 standartlarına göre Elektriksel Güvenlik Ölçüm testlerinden geçmiştir."]

{"sheet":"PERFORMANS Testi","index":4,"n_rows":2,"n_cols":52,"rows_kept":2,"cut":false,"hidden":false,"merged":[]}
["id","O1","O2","O3","O4","O5","O6","O7","O8","O9","O10","O11","O12","O13","O14","O15","O16","O17","O18","O19","O20","O21","O22","O23","O24","O25","O26","O27","O28","O29","O30","O31","O32","O33","O34","O35","O36","O37","O38","O39","O40","O41","O42","O43","O44","O45","O46","O47","O48","O49","O50","rapor_no"]
[1]